Cogmind - Beta 14 @@@ ROGUE MODE // 2024.10.24 @ 16:14:12 Player: canerib Result: Destroyed by Y-54 Guardian with Gatling Laser Performance ------------- Evolutions (4) 2000 Regions Visited (9) 1800 Robots Destroyed (32) 160 Value Destroyed (720) 720 Prototype IDs (4) 80 Alien Tech Used (0) 0 Bonus (306) 306 TOTAL SCORE: 5066 Bonus ------- High Alert Combat Kills 6 Aligned with FarCom 300 Cogmind --------- Core Integrity 0/850 Matter 202/300 Energy 99/100 System Corruption 1% Temperature Cool (6) Movement Core (50) Location -6/Extension Parts ------- > --- POWER (1) -------- (None) > --- PROPULSION (8) --- (None) > --- UTILITY (4) ------ (None) > --- WEAPON (2) ------- (None) > --- INVENTORY (5) ---- Carbon-fiber Leg Cooled Aerolev Unit Peak State ------------ > --- POWER ------------ Light Nuclear Core > --- PROPULSION ------- Improved Carbon-fiber Leg Improved Carbon-fiber Leg Improved Carbon-fiber Leg Improved Carbon-fiber Leg > --- UTILITY ---------- Lightpack 2.0 Propulsion Shielding > --- WEAPON ----------- Autogun Grenade Launcher > --- INVENTORY -------- Nuclear Core Nuclear Core Flight Unit Flight Unit Flight Unit Flight Unit Flight Unit VTOL Module VTOL Module VTOL Module Improved Heat Sink Cooling System Superbattery Sensor Array Reaction Control System Propulsion Shielding Improved EM Shotgun Light Assault Rifle Light Assault Rifle Light Assault Rifle Mining Claw [Rating: 57] Favorites ----------- Power Ion Engine Engine Ion Engine Power Core Light Nuclear Core Propulsion Flight Unit Leg Aluminum Leg Hover Unit Gravmag Array Flight Unit Flight Unit Utility Visual Processing Unit Device Seismic Detector Storage Large Storage Unit Processor Visual Processing Unit Protection Propulsion Shielding Weapon Light Assault Rifle Energy Gun Improved EM Shotgun Ballistic Gun Light Assault Rifle Ballistic Cannon Light Cannon Launcher Grenade Launcher Slashing Weapon Greatsword Build | -11 -10 -9 -9 -9 -8 -8 -7 -6 -6 ------- Run | Yrd Mat Mat Min Exi Min Mat Fac Fac Ext Slots Evolved 8 | . . 2 . . . 2 2 2 . Power . | . . . . . . . . . . Propulsion 6 | . . 1 . . . 1 2 2 . Utility 2 | . . 1 . . . 1 . . . Weapon . | . . . . . . . . . . Parts Attached 61 | 7 8 12 3 7 . 15 1 7 1 Power 3 | 1 . . . 1 . 1 . . . Engine 1 | 1 . . . . . . . . . Core 2 | . . . . 1 . 1 . . . Reactor . | . . . . . . . . . . Propulsion 28 | 2 2 5 2 1 . 9 1 6 . Treads . | . . . . . . . . . . Leg 10 | 2 2 2 . . . 4 . . . Wheel . | . . . . . . . . . . Hover 1 | . . . . . . . . 1 . Flight 17 | . . 3 2 1 . 5 1 5 . Utility 10 | 2 1 3 . 3 . 1 . . . Device 2 | 1 . 1 . . . . . . . Storage 5 | 1 1 1 . 2 . . . . . Processor 2 | . . 1 . 1 . . . . . Hackware . | . . . . . . . . . . Protection 1 | . . . . . . 1 . . . Artifact . | . . . . . . . . . . Weapon 20 | 2 5 4 1 2 . 4 . 1 1 Energy Gun 8 | 1 4 2 . . . . . . 1 Energy Cannon . | . . . . . . . . . . Ballistic Gun 5 | 1 . . . 2 . 2 . . . Ballistic Cannon 1 | . 1 . . . . . . . . Launcher 5 | . . 2 1 . . 2 . . . Special Weapon . | . . . . . . . . . . Impact Weapon . | . . . . . . . . . . Slashing Weapon 1 | . . . . . . . . 1 . Piercing Weapon . | . . . . . . . . . . Special Melee Weapon . | . . . . . . . . . . Unidentified Prototypes 4 | . 1 . . 3 . . . . . Corrupted Parts 1 | . . . . 1 . . . . . System Corruption 1 | . . . . 1 . . . . . Parts Lost 27 | . . 7 1 . . 3 2 12 2 Power 3 | . . 1 . . . 1 . 1 . Propulsion 17 | . . 5 1 . . . 1 9 1 Utility 2 | . . . . . . 1 . 1 . Weapon 5 | . . 1 . . . 1 1 1 1 Highest Loss Streak 6 | . . 3 2 . . 3 2 6 1 To Critical Strikes . | . . . . . . . . . . Average Slot Usage (%) 77 | . 99 88 75 71 77 77 53 23 3 Engine 6 | . 14 9 . . . . . . . Core 1 | . . . . 2 11 9 7 2 . Leg 14 | . 27 21 . . . 25 . . . Flight 12 | . . 3 33 33 33 10 30 14 . Device 8 | . 14 11 11 7 . . . . . Storage 10 | . 14 11 11 11 11 9 7 4 . Processor 5 | . . 10 11 12 . . . . . Energy Gun 7 | . 16 13 . . . . . . 1 Ballistic Gun 5 | . 8 . . 3 22 14 7 . . Ballistic Cannon 1 | . 3 . . . . . . . . Launcher 1 | . . 6 9 . . 1 . . . Peak Build Rating 57 | 7 12 15 9 40 40 57 49 52 10 Average Rating 18 | 5 9 12 8 13 40 52 49 41 3 On Entrance 22 | . 7 12 7 9 40 40 49 49 10 Naked Turns 39 | . . . . . . . . 1 38 Heaviest Build 53 | 14 52 53 24 24 12 15 13 12 4 Greatest Support 72 | 20 20 30 12 12 12 72 16 20 20 Greatest Overweight (x) 7 | . 2 7 2 1 . . . . 1 Average Overweight (x) . | . . 1 1 . . . . . . Largest Inventory Capacity 40 | 8 20 20 15 40 40 40 40 40 5 Average Capacity 18 | 7 12 16 15 14 40 40 40 33 5 Most Carried 40 | 5 12 14 12 14 11 31 31 40 3 Average Carried 12 | 2 8 12 11 10 11 17 30 30 1 Final Capacity 40 | 8 20 15 15 40 40 40 40 5 5 Final Carried 30 | 3 12 11 12 11 11 30 30 1 2 Class Distribution -------------------- 52% | Mutant 27% | Scavenger-Mutant 14% | Hauler-Mutant 6% | Hauler-Sprinter Dominant Class ---------------- Mutant | -10/Materials Mutant | -9/Materials Scavenger-Mutant | -9/Mines Scavenger-Mutant | -9/Exiles Hauler-Mutant | -8/Mines Hauler-Mutant | -8/Materials Hauler-Sprinter | -7/Factory Hauler-Mutant | -6/Factory Mutant | -6/Extension Resources | -11 -10 -9 -9 -9 -8 -8 -7 -6 -6 ----------- Run | Yrd Mat Mat Min Exi Min Mat Fac Fac Ext Matter Collected 874 | 282 227 113 29 . . 27 . 14 182 Remotely . | . . . . . . . . . . Salvage Created 791 | 122 369 186 32 . . . . 25 57 Parts 56 | 7 24 16 7 . . . . 2 . Haulers Intercepted 1 | . 1 . . . . . . . . Recyclers Shooed . | . . . . . . . . . . Parts Field Recycled . | . . . . . . . . . . Retrieved Matter . | . . . . . . . . . . Parts Self-Destructed . | . . . . . . . . . . Prevented . | . . . . . . . . . . Kills | -11 -10 -9 -9 -9 -8 -8 -7 -6 -6 ------- Run | Yrd Mat Mat Min Exi Min Mat Fac Fac Ext Combat Hostiles Destroyed 23 | . 10 7 4 . . . . 1 1 Melee 1 | . . . . . . . . 1 . Guns 10 | . 7 2 . . . . . . 1 Cannons 2 | . 2 . . . . . . . . AOE 10 | . 1 5 4 . . . . . . Classes Destroyed 8 | 2 4 2 . . . . . . . Worker 1 | . . 1 . . . . . . . Tunneler 3 | 2 . 1 . . . . . . . Hauler 1 | . 1 . . . . . . . . Recycler 1 | 1 . . . . . . . . . Watcher 3 | . 1 2 . . . . . . . Swarmer 11 | . 3 3 4 . . . . 1 . Grunt 10 | . 7 2 . . . . . . 1 Sentry 2 | . . 2 . . . . . . . Best Kill Streak 4 | 3 3 4 4 . . . . 1 1 Combat Bots Only 4 | . 3 3 4 . . . . 1 1 Max Kills in Single Turn 4 | 1 2 3 4 . . . . 1 1 Gunslinging . | . . . . . . . . . . Exploded 4 | . 1 2 4 . . . . . . Melee 1 | . . . . . . . . 1 . Uniques/NPCs Destroyed . | . . . . . . . . . . Combat | -11 -10 -9 -9 -9 -8 -8 -7 -6 -6 -------- Run | Yrd Mat Mat Min Exi Min Mat Fac Fac Ext Hostile Shots Fired 462 | . 69 39 6 . . 51 6 253 38 Missed 207 | . 22 11 1 . . 16 2 137 18 Damage Taken 4015 | . 590 609 77 . . 697 109 1628 305 Core 1522 | . 158 227 33 . . 164 85 686 169 Absorbed by Shields . | . . . . . . . . . . Redirected to Shielding 52 | . . . . . . 52 . . . Regen/Repaired (Parts) 35 | . 35 . . . . . . . . Core Remaining (%) 65 | 100 36 . . . 35 70 87 . . Volleys Fired 89 | 12 42 17 1 . . 11 . . 6 Largest 2 | 2 2 2 1 . . 2 . . 1 Hottest 90 | 70 90 90 30 . . 43 . . 85 Shots Fired 162 | 24 85 25 1 . . 21 . . 6 Gun 127 | 24 60 16 . . . 21 . . 6 Cannon 25 | . 25 . . . . . . . . Launcher 10 | . . 9 1 . . . . . . Special . | . . . . . . . . . . Kinetic 98 | 12 65 . . . . 21 . . . Thermal 32 | 12 14 . . . . . . . 6 Explosive 10 | . . 9 1 . . . . . . Electromagnetic 22 | . 6 16 . . . . . . . Robot Hit Streak 8 | 4 7 8 6 . . 7 . . 6 Robot Miss Streak 5 | 2 2 5 . . . 4 . . . Penetration Max . | . . . . . . . . . . Secondary Targets 1 | . . 1 . . . . . . . Max Gunslinging Chain 1 | . . 1 . . . . . . . Shots Hit Robots 108 | 13 60 15 1 . . 12 . 1 6 Core Hits 54 | 5 23 16 3 . . 3 . . 4 Critical Kills . | . . . . . . . . . . Critical Parts Destroyed . | . . . . . . . . . . Critical Strikes 2 | . . . . . . . . . 2 Burn 2 | . . . . . . . . . 2 Melee Attacks 3 | . . . . . . . . 3 . Impact . | . . . . . . . . . . Slashing 3 | . . . . . . . . 3 . Piercing . | . . . . . . . . . . Sneak Attacks . | . . . . . . . . . . Combat Hostiles . | . . . . . . . . . . Follow-up Attacks . | . . . . . . . . . . Damage Inflicted 2387 | 136 761 961 197 . . 150 . 51 131 Guns 993 | 136 419 181 . . . 141 . . 116 Cannons 307 | . 307 . . . . . . . . Explosions 1012 | . 35 780 197 . . . . . . Melee 51 | . . . . . . . . 51 . Ramming 24 | . . . . . . 9 . . 15 Kinetic 726 | 48 537 . . . . 141 . . . Thermal 761 | 88 148 409 . . . . . . 116 Explosive 568 | . . 371 197 . . . . . . Electromagnetic 257 | . 76 181 . . . . . . . Impact . | . . . . . . . . . . Slashing 51 | . . . . . . . . 51 . Piercing . | . . . . . . . . . . Highest Corruption 5 | . 5 . . 1 1 . 2 . 1 Average Corruption 2 | . 5 . . 1 1 . 2 . 1 Corruption Purged . | . . . . . . . . . . Corruption Blocked . | . . . . . . . . . . Effects 14 | . 9 . . 4 . . 1 . . Message Errors 7 | . 5 . . 2 . . . . . Matter Fused 2 | . 1 . . . . . 1 . . Heat Flow Errors 2 | . 1 . . 1 . . . . . Data Loss (minor) 2 | . 1 . . 1 . . . . . Misfires 1 | . 1 . . . . . . . . Overload Shots . | . . . . . . . . . . Overflow Damage 213 | . . 143 30 . . . . 40 . Projectiles . | . . . . . . . . . . Explosions 173 | . . 143 30 . . . . . . Melee 40 | . . . . . . . . 40 . Knockbacks 5 | . 5 . . . . . . . . Impact . | . . . . . . . . . . Kinetic 5 | . 5 . . . . . . . . Secondary . | . . . . . . . . . . Self-Inflicted Damage 424 | . 40 340 38 . . . . . 6 Shots 9 | . 1 7 1 . . . . . . Rammed 5 | . . . . . . . . . 5 Targets Rammed 6 | . . . . . . 1 . . 5 Kicked 1 | . . . . . . 1 . . . Crushed . | . . . . . . . . . . Highest Temperature 201 | 130 201 72 . 180 . 75 . . 40 Average Temperature 46 | 47 49 32 . 91 . 43 . . 17 Received Heat Transfer 726 | . 258 87 . . . 198 . 141 42 Siege Activations . | . . . . . . . . . . Robots Corrupted . | . . . . . . . . . . Combat Hostiles . | . . . . . . . . . . Parts Fried 2 | . . 2 . . . . . . . Impact Corruptions . | . . . . . . . . . . Robots Melted . | . . . . . . . . . . Combat Hostiles . | . . . . . . . . . . Parts Melted 3 | . 1 . . . . . . . 2 Heat Transferred 1342 | 259 333 250 . . . . . . 500 Parts Sabotaged . | . . . . . . . . . . Parts Stolen . | . . . . . . . . . . Parts Stripped . | . . . . . . . . . . Power Chain Reactions 2 | . 1 1 . . . . . . . Alert | -11 -10 -9 -9 -9 -8 -8 -7 -6 -6 ------- Run | Yrd Mat Mat Min Exi Min Mat Fac Fac Ext Peak Influence 439 | 15 252 396 250 . . 186 84 439 236 Initial 221 | . 9 26 150 . . . 84 4 221 Average 141 | 5 154 168 247 . . 14 49 210 219 Maximum Alert Level 2 | . 1 1 1 . . . . 2 1 Low Security (%) 61 | 100 52 70 2 . 100 100 100 49 . Level 1 36 | . 47 29 97 . . . . 33 100 Level 2 2 | . . . . . . . . 17 . Level 3 . | . . . . . . . . . . Level 4 . | . . . . . . . . . . Level 5 . | . . . . . . . . . . High Security . | . . . . . . . . . . Max Security . | . . . . . . . . . . Squads Dispatched 4 | . 1 1 . . . . . 2 . Investigation 1 | . . . . . . . . 1 . Extermination . | . . . . . . . . . . Reinforcement 3 | . 1 1 . . . . . 1 . Assault . | . . . . . . . . . . Garrison . | . . . . . . . . . . Intercept . | . . . . . . . . . . Searches Triggered . | . . . . . . . . . . Construction Impeded . | . . . . . . . . . . Haulers Reinforced . | . . . . . . . . . . Active Scanning Responses . | . . . . . . . . . . Cargo Convoy Interrupts . | . . . . . . . . . . Stealth | -11 -10 -9 -9 -9 -8 -8 -7 -6 -6 --------- Run | Yrd Mat Mat Min Exi Min Mat Fac Fac Ext Distress Signals 8 | . 4 2 . . . 1 . . 1 Communications Jammed . | . . . . . . . . . . Distress Signals . | . . . . . . . . . . Times Spotted 102 | . 16 20 4 . . 16 4 37 5 Peak Tracking Total 11 | . 4 9 4 . . 9 4 11 3 Tactical Retreats 15 | . 3 . . . . 3 . 9 . Traps | -11 -10 -9 -9 -9 -8 -8 -7 -6 -6 ------- Run | Yrd Mat Mat Min Exi Min Mat Fac Fac Ext Traps Triggered 2 | . . . . . . . 1 1 . Indirectly . | . . . . . . . . . . Trap Hack Attempts . | . . . . . . . . . . Triggered . | . . . . . . . . . . Disarmed . | . . . . . . . . . . Reprogrammed . | . . . . . . . . . . Reused . | . . . . . . . . . . Traps Extracted . | . . . . . . . . . . Installed . | . . . . . . . . . . Triggered . | . . . . . . . . . . Machines | -11 -10 -9 -9 -9 -8 -8 -7 -6 -6 ---------- Run | Yrd Mat Mat Min Exi Min Mat Fac Fac Ext Machines Disabled 3 | . . 3 . . . . . . . Max in Single Turn 3 | . . 3 . . . . . . . Machines Repaired . | . . . . . . . . . . Machines Dismantled . | . . . . . . . . . . Machines Sabotaged . | . . . . . . . . . . Overloaded Fab Kills . | . . . . . . . . . . Hacking | -11 -10 -9 -9 -9 -8 -8 -7 -6 -6 --------- Run | Yrd Mat Mat Min Exi Min Mat Fac Fac Ext Machines Accessed 18 | . 5 1 . 4 . 3 1 3 1 Terminals 11 | . 4 1 . . . 3 1 1 1 Fabricators . | . . . . . . . . . . Repair Stations 2 | . 1 . . . . . . 1 . Recycling Units . | . . . . . . . . . . Scanalyzers . | . . . . . . . . . . Garrison Access 1 | . . . . . . . . 1 . Total Hacks 84 | . 13 2 . 49 . 8 4 6 2 Successful 70 | . 10 1 . 49 . 6 2 1 1 Failed 14 | . 3 1 . . . 2 2 5 1 Catastrophic 3 | . . . . . . . . 3 . Database Lockouts . | . . . . . . . . . . Manual 15 | . 6 . . 1 . 6 2 . . Terminals 28 | . 10 2 . . . 8 4 2 2 Fabricators . | . . . . . . . . . . Repair Stations 4 | . 3 . . . . . . 1 . Recycling Units . | . . . . . . . . . . Scanalyzers . | . . . . . . . . . . Garrison Access 3 | . . . . . . . . 3 . Terminal Hacks 63 | . 6 1 . 49 . 4 1 1 1 Record 50 | . . . . 49 . . . 1 . Robot Analysis 1 | . 1 . . . . . . . . Open Door 1 | . . . . . . . . . 1 Level Access Points 1 | . . . . . . 1 . . . Branch Access Points 2 | . 1 . . . . 1 . . . Alert Level 4 | . 2 1 . . . 1 . . . Unreport Threat 1 | . . . . . . . 1 . . Zone Layout 3 | . 2 . . . . 1 . . . Fabricator Hacks . | . . . . . . . . . . Repair Station Hacks 2 | . 2 . . . . . . . . Scan Component 1 | . 1 . . . . . . . . Repair 1 | . 1 . . . . . . . . Recycling Unit Hacks . | . . . . . . . . . . Scanalyzer . | . . . . . . . . . . Garrison Access Hacks . | . . . . . . . . . . Unauthorized Hacks 5 | . 2 . . . . 2 1 . . Terminals 5 | . 2 . . . . 2 1 . . Botnet 5 | . 2 . . . . 2 1 . . Fabricators . | . . . . . . . . . . Repair Stations . | . . . . . . . . . . Recycling Units . | . . . . . . . . . . Scanalyzers . | . . . . . . . . . . Garrison Access . | . . . . . . . . . . Data Cores Recovered . | . . . . . . . . . . Used . | . . . . . . . . . . Hacking Detections 12 | . 4 1 . . . 2 1 3 1 Full Trace Events 1 | . . . . . . . . 1 . Feedback Events . | . . . . . . . . . . Feedback Blocked . | . . . . . . . . . . Robot Schematics Acquired . | . . . . . . . . . . Robots Built . | . . . . . . . . . . Authchips . | . . . . . . . . . . Time . | . . . . . . . . . . Total Robot Build Rating . | . . . . . . . . . . Part Schematics Acquired . | . . . . . . . . . . Parts Built . | . . . . . . . . . . Authchips . | . . . . . . . . . . Time . | . . . . . . . . . . Total Part Build Rating . | . . . . . . . . . . Parts Repaired 1 | . 1 . . . . . . . . Time 26 | . 26 . . . . . . . . Parts Recycled . | . . . . . . . . . . Recycled Matter . | . . . . . . . . . . Retrieved Matter . | . . . . . . . . . . Retrieved Components . | . . . . . . . . . . Parts Scanalyzed . | . . . . . . . . . . Part Schematics Acquired . | . . . . . . . . . . Parts Damaged . | . . . . . . . . . . Bothacking | -11 -10 -9 -9 -9 -8 -8 -7 -6 -6 ------------ Run | Yrd Mat Mat Min Exi Min Mat Fac Fac Ext Used RIF Installer . | . . . . . . . . . . Robots Hacked . | . . . . . . . . . . Non-combat . | . . . . . . . . . . Combat . | . . . . . . . . . . Robot Hacks Applied . | . . . . . . . . . . Relay Couplers Released . | . . . . . . . . . . Fabnet Peak Effective % . | . . . . . . . . . . Robots Rewired . | . . . . . . . . . . Allies Hacked . | . . . . . . . . . . Hacks Repelled . | . . . . . . . . . . Allies | -11 -10 -9 -9 -9 -8 -8 -7 -6 -6 -------- Run | Yrd Mat Mat Min Exi Min Mat Fac Fac Ext Total Allies 2 | . . . . . . . . . 2 Largest Group 2 | . . . . . . . . . 2 Highest-Rated Group 50 | . . . . . . . . . 50 Highest-Rated Ally 25 | . . . . . . . . . 25 Total Orders . | . . . . . . . . . . Ally Attacks 6 | . . . . . . . . . 6 Total Damage 152 | . . . . . . . . . 152 Kills . | . . . . . . . . . . Allies Corrupted . | . . . . . . . . . . Allies Melted . | . . . . . . . . . . Intel | -11 -10 -9 -9 -9 -8 -8 -7 -6 -6 ------- Run | Yrd Mat Mat Min Exi Min Mat Fac Fac Ext Robot Analysis Total 1 | . 1 . . . . . . . . Derelict Logs Recovered . | . . . . . . . . . . Drone Launches . | . . . . . . . . . . Drone Recoveries . | . . . . . . . . . . Exploration | -11 -10 -9 -9 -9 -8 -8 -7 -6 -6 ------------- Run | Yrd Mat Mat Min Exi Min Mat Fac Fac Ext Turns Passed 2966 | 127 962 379 78 729 11 297 14 297 72 Spaces Moved 2527 | 73 444 158 60 557 32 337 38 736 92 Core 85 | 15 . 1 . . . . . 1 68 Treads . | . . . . . . . . . . Legs 762 | 58 444 125 . . . 135 . . . Wheels . | . . . . . . . . . . Hover 104 | . . . . . . . . 80 24 Flight 1576 | . . 32 60 557 32 202 38 655 . Fastest Speed 27 | 50 120 114 114 34 34 28 27 27 50 Average Speed 89 | 105 160 196 116 96 34 65 27 35 54 Slowest Speed 400 | 120 260 400 197 114 34 120 28 60 100 Overloaded Moves . | . . . . . . . . . . Propulsion Burnouts . | . . . . . . . . . . Robots Hopped 22 | . . . . . . 9 . 13 . Cave-ins Triggered . | . . . . . . . . . . Exploration Rate (%) 31 | 5 76 29 20 89 10 45 2 24 16 Regions Visited 9 Branch Regions 4 Pre-discovered Areas 1 | . . . . 1 . . . . . Known Exits Taken 1 | . . . . . . 1 . . . Unknown Exits Taken 8 | 1 1 1 1 1 1 . 1 1 . Scrap Searched . | . . . . . . . . . . Spaces Dug . | . . . . . . . . . . Terrain Destroyed 112 | . 2 105 5 . . . . . . Melee . | . . . . . . . . . . Projectile . | . . . . . . . . . . AOE 112 | . 2 105 5 . . . . . . Terrain Rammed . | . . . . . . . . . . Walls Destroyed . | . . . . . . . . . . Machines Disabled . | . . . . . . . . . . Actions | -11 -10 -9 -9 -9 -8 -8 -7 -6 -6 --------- Run | Yrd Mat Mat Min Exi Min Mat Fac Fac Ext Total 3060 | 101 620 201 67 749 31 386 40 757 108 Wait 274 | . 99 4 . 161 . 5 1 4 . Move 2478 | 72 443 157 59 556 31 321 37 710 92 Hop 18 | . . . . . . 6 . 12 . Pick Up 99 | 10 19 7 4 16 . 22 1 17 3 Fast Attach . | . . . . . . . . . . Attach 40 | 7 3 6 3 5 . 7 1 7 1 Detach 6 | . . 1 . 2 . 3 . . . Swap 21 | . 5 6 . 2 . 8 . . . Drop 26 | . 9 3 . 7 . 2 . 4 1 Fire 89 | 12 42 17 1 . . 11 . . 6 Melee 3 | . . . . . . . . 3 . Ram 5 | . . . . . . . . . 5 Kick 1 | . . . . . . 1 . . . Crush . | . . . . . . . . . . Escape Stasis . | . . . . . . . . . . Rewire . | . . . . . . . . . . Trap . | . . . . . . . . . . Miscellaneous . | . . . . . . . . . . Route ------- -11/Scrapyard -10/Materials (discovered 4 exits: *Mat x2 / Min x2) -9/Materials -9/Mines -9/Exiles (discovered 2 exits: [*Min x2]) -8/Mines -8/Materials (discovered 5 exits: *Fac x3 / Sto x2) -7/Factory -6/Factory -6/Extension History --------- Turn | Location | Event 6 | -11/Scrapyard | Discovered new exit (range 16) 128 | -11/Scrapyard | Entered Materials 314 | -10/Materials | Build established: Mutant 375 | -10/Materials | Discovered new exit (range 18) 378 | -10/Materials | Identified exit to Mines 421 | -10/Materials | Repaired Aluminum Leg 593 | -10/Materials | Core integrity fell below 50% 645 | -10/Materials | Discovered new exit (range 3) 1090 | -10/Materials | Entered another Materials area 1090 | -9/Materials | Evolved 2 slots: Propulsion x1, Utility x1 1421 | -9/Materials | Core integrity fell below 50% 1451 | -9/Materials | Lost 3 parts (1p1n1w) 1462 | -9/Materials | Discovered new exit (range 7) 1469 | -9/Materials | Entered Mines 1542 | -9/Mines | Deemed a non-threat by the Exiles lab entrance 1543 | -9/Mines | Discovered new exit (range 5) 1547 | -9/Mines | Entered Exiles 1569 | -9/Exiles | Discovered new exit (range 16) 1581 | -9/Exiles | Met 8R-AWN 1601 | -9/Exiles | Met EX-HEX 1637 | -9/Exiles | Met EX-BIN 1714 | -9/Exiles | Build established: Scavenger-Mutant 1765 | -9/Exiles | Met EX-DEC 1773 | -9/Exiles | Learned location of Zion (-7) 1814 | -9/Exiles | Discovered new exit (range 10) 1888 | -9/Exiles | Visited The Gauntlet 2013 | -9/Exiles | Aligned with FarCom system 2015 | -9/Exiles | Given EX-Vault access code 2043 | -9/Exiles | Opened EX-Vault 2045 | -9/Exiles | Found Prototype Processor 2046 | -9/Exiles | Identified Modified TNC 2053 | -9/Exiles | Found Prototype Storage 2056 | -9/Exiles | Found Prototype Storage 2057 | -9/Exiles | Identified Superbattery 2227 | -9/Exiles | Identified Lightpack 2.0 2248 | -9/Exiles | Exiles lab attacked by MAIN.C 2276 | -9/Exiles | Stole two prototypes: Lightpack 2.0, Superbattery 2276 | -9/Exiles | Entered Mines 2284 | -8/Mines | Discovered new exit (range 7) 2287 | -8/Mines | Entered Materials 2287 | -8/Materials | Evolved 2 slots: Propulsion x1, Utility x1 2323 | -8/Materials | Identified exit to Storage 2573 | -8/Materials | Identified exit to Factory 2582 | -8/Materials | Lost 3 parts (1p1u1w) 2584 | -8/Materials | Entered Factory 2584 | -7/Factory | Evolved 2 slots: Propulsion x2 2586 | -7/Factory | FarCom data flow suspended 2592 | -7/Factory | Discovered new exit (range 15) 2598 | -7/Factory | Entered another Factory area 2598 | -6/Factory | Evolved 2 slots: Propulsion x2 2799 | -6/Factory | Lost 5 parts (1p4n) 2848 | -6/Factory | Core integrity fell below 50% 2878 | -6/Factory | Lost 6 parts (4n1u1w) 2889 | -6/Factory | Discovered new exit (range 12) 2894 | -6/Factory | Core integrity fell below 20% 2895 | -6/Factory | Entered Extension 2922 | -6/Extension | Rescued a captive Derelict 2925 | -6/Extension | Rescued a captive Derelict 2967 | -6/Extension | Destroyed by Y-54 Guardian with Gatling Laser Last Messages --------------- 02932_ G-50 Soldier Carbon-fiber Leg severed. 02933_ Acquired Corrupted Carbon-fiber Leg. 02934_ Dropped Corrupted Carbon-fiber Leg. 02935_ G-50 Soldier Carbon-fiber Leg severed. 02935_ G-50 Soldier suffers critical hit (Burn). 02937_ 8X-74A(l) suffers critical hit (Burn). 02937_ 8X-74A(l) overheating. 02941_ Lgt. Angular Momentum Engine melted. 02941_ Adv. Heat Sink melted. 02941_ G-50 Soldier destroyed. 02943_ 8X-74A(l) heat damages Carbon-fiber Leg. 02943_ Acquired 57 matter. 02944_ 8X-74A(l) heat spikes uncontrollably. 02945_ 8X-74A(l) overheating. 02946_ Acquired Carbon-fiber Leg. 02947_ 8X-74A(l) overheating. 02948_ 8X-74A(l) heat damages core (-9). 02948_ P-60 Hacker suffers critical hit (Burn). 02952_ Thermic Laser destroyed. 02952_ Acquired 55 matter. Map ----- +----------------------------------------------------+ | | | | | | | | | | | | | | | | | | | ?????????????????????????????????????????????????? | | ??????????????????##?????????????????????????????? | | ?????????????????? ?????????????????????????????? | | ????#######??????? ?????????????????????????????? | | ???? ???????? ?????????????????????????????? | | ???? #???????? ?????????????????????????????? | | ???? #???????? ?????????????????????????????? | | ???# #????????# ?????????????????????????????? | | ???# #????????# #????????#+#####?????????????? | | #### +????????# #???????? #?????????????? | | # ??????????# #??????? #?????????????? | | # #????????????# #??????? YY* #?????????????? | | # #????????????# ######? = lg #?????????????? | | #????????????# +? =lg #?????????????? | | #### #????????????# # #?????????????? | | ???# ############## # #?????????????? | | ???# @ #?????????????? | | ???###############################???????????????? | | ?????????????????????????????????????????????????? | | ?????????????????????????????????????????????????? | | ?????????????????????????????????????????????????? | | ?????????????????????????????????????????????????? | | ?????????????????????????????????????????????????? | | ?????????????????????????????????????????????????? | | ?????????????????????????????????????????????????? | | ?????????????????????????????????????????????????? | | ?????????????????????????????????????????????????? | | ?????????????????????????????????????????????????? | | ?????????????????????????????????????????????????? | | ?????????????????????????????????????????????????? | | ?????????????????????????????????????????????????? | | ?????????????????????????????????????????????????? | | ?????????????????????????????????????????????????? | | ?????????????????????????????????????????????????? | | ?????????????????????????????????????????????????? | | ?????????????????????????????????????????????????? | | ####?????????????????????????????????????????????? | | ????????????????????????????????????????????? | | ????????????????????????????????????????????? | | ????????????????????????????????????????????? | | ????????????????????????????????????????????? | +----------------------------------------------------+ Best States ------------- Heat Dissipation 37 Energy Generation 14 Energy Capacity 1660 Matter Stores 300 Matter Capacity 300 Sight Range 18 Robot Scan Range 14 Terrain Scan Density 10 Propulsion Shielding 33 Evasion (%) 64 Item Schematics ----------------- None Robot Schematics ------------------ None Fabricated ------------ Nothing Alien Tech Used ----------------- None Achievements -------------- Packrat Challenges ------------ None Game ------ Seed ControlMappingCompanion Manual? 0 Play Time 00:39:51 Cumulative 38.7 hours Start 2024.10.24 @ 15:35:30 End 2024.10.24 @ 16:14:12 Sessions 1 Manual Loads 0 Difficulty Rogue Special Mode None Game No. 53 Rogue 53 Adventurer 0 Explorer 0 Win Type - Total 0 Types 0/0/0/0/0/0/0/0/0 Lore% 22 Gallery% 35 Achievement% 34 Wizard Run 0 Options --------- Layout 1 ASCII 1 Keyboard 0 Movement Numpad Keybinds 0 Fullscreen 1 Font 48/Smallcaps Map View 76x35 Zoom Use 0% Tactical HUD 1 Map Filters NONE Filters NONE Steam 1 RUN: b373cecf-5337-47e4-8117-50eb00c9158c